lending/lending_fUSD_20260209
["ID","MTS","AMOUNT","RATE_DAILY","PERIOD"]
[404900724,1770665438062,-151.0,0.00016721,2]
[404900725,1770665438072,-151.0,0.00016721,2]
[404900726,1770665438081,-151.0,0.00016721,2]
[404900727,1770665438090,-151.0,0.00016721,2]
[404900728,1770665438099,-151.0,0.00016721,2]
[404900729,1770665438109,-151.0,0.00016721,2]
[404900730,1770665438118,-151.0,0.00016721,2]
[404900731,1770665438127,-151.0,0.00016721,2]
[404900732,1770665438137,-151.0,0.00016721,2]
[404900733,1770665438147,-151.0,0.00016721,2]
[404900735,1770665438156,-151.0,0.00016721,2]
[404900737,1770665438166,-500.0,0.00016721,2]
[404900739,1770665438174,-500.0,0.00016721,2]
[404900741,1770665438188,-500.0,0.00016721,2]
[404900743,1770665438198,-500.0,0.00016721,2]
[404900745,1770665438208,-210.71011839,0.00016721,2]
[404900747,1770665438217,-1385.7313984,0.00016725,2]
[404900749,1770665438227,-500.0,0.00016802,2]
[404900751,1770665438237,-500.0,0.00016831,2]
[404900753,1770665438247,-416.0,0.00016837,2]
[404900755,1770665438257,-1379.01,0.00016904,2]
[404900758,1770665438267,-249.0,0.00016919,2]
[404900760,1770665438277,-18194.0,0.0001692,2]
[404900762,1770665438287,-133740.6233172,0.00016931,2]
[404900764,1770665438297,-1000.0,0.00016933,2]
[404900766,1770665438306,-1806.11,0.00016961,2]
[404900768,1770665438315,-2844.52468713,0.00016983,2]
[404900770,1770665438325,-500.0,0.00017,2]
[404900772,1770665438334,-166.0,0.00017001,2]
[404900774,1770665438345,-1385.7313984,0.00017019,2]
[404900775,1770665438354,-1000.0,0.00017032,2]
[404900776,1770665438363,-354.59805596,0.00017076,2]
[404900777,1770665438372,-152.34,0.000171,2]
[404900778,1770665438380,-550.75248981,0.00017166,2]
[404900779,1770665438390,-217.40696742,0.00017166,2]
[404900780,1770665438399,-1037.9849015,0.00017166,2]
[404900781,1770665438408,-1379.01,0.00017178,2]
[404900782,1770665438417,-200.0,0.00017269,2]
[404900783,1770665438427,-200.0,0.00017269,2]
[404900784,1770665438436,-500.0,0.00017269,2]
[404900785,1770665438445,-1385.7313984,0.00017312,2]
[404900787,1770665438455,-369.98,0.00017345,2]
[404900789,1770665438464,-1117.0,0.00017413,2]
[404900791,1770665438473,-1379.01,0.00017452,2]
[404900793,1770665438483,-1117.0,0.00017595,2]
[404900795,1770665438493,-1117.0,0.00017599,2]
[404900796,1770665438502,-1385.7313984,0.00017606,2]
[404900798,1770665438512,-935.0,0.00017634,2]
[404900799,1770665438521,-783.40878762,0.000177,2]
[404900800,1770665438530,-403.0,0.000177,5]
[404900801,1770665438540,-11071.72,0.00017702,2]
[404900802,1770665438549,-1379.01,0.00017726,2]
[404900803,1770665438558,-14615.05,0.00017728,2]
[404900804,1770665438568,-9999.99,0.00017728,2]
[404900805,1770665438578,-2981.69,0.00017728,2]
[404900806,1770665438587,-26706.82,0.00017728,2]
[404900807,1770665438597,-1229.19,0.00017728,2]
[404900808,1770665438606,-9999.99,0.00017728,2]
[404900809,1770665438615,-9999.99,0.00017728,2]
[404900810,1770665438625,-150.99,0.00017728,2]
[404900811,1770665438635,-999.99,0.00017728,2]
[404900812,1770665438644,-150.99,0.00017728,2]
[404900813,1770665438654,-4608.89,0.00017728,2]
[404900814,1770665438663,-1610.81,0.00017728,2]
[404900815,1770665438672,-5278.04,0.00017728,2]
[404900816,1770665438682,-59327.49,0.00017728,2]
[404900817,1770665438692,-1623.01,0.00017728,2]
[404900818,1770665438701,-9999.99,0.00017728,2]
[404900819,1770665438711,-5909.69,0.00017728,2]
[404900820,1770665438720,-9999.99,0.00017728,2]
[404900821,1770665438729,-23588.34,0.00017728,2]
[404900822,1770665438739,-9999.99,0.00017728,2]
[404900823,1770665438748,-499.99,0.00017728,2]
[404900824,1770665438758,-3187.53,0.00017728,2]
[404900825,1770665438768,-299.99,0.00017728,4]
[404900826,1770665438778,-10041.74,0.00017768,2]
[404900827,1770665438787,-200.0,0.00017793,2]
[404900828,1770665438797,-1000.0,0.00017809,2]
[404900829,1770665438806,-1000.0,0.00017809,2]
[404900830,1770665438818,-1000.0,0.00017809,2]
[404900831,1770665438827,-1000.0,0.00017809,2]
[404900832,1770665438836,-1000.0,0.00017809,2]
[404900833,1770665438846,-1000.0,0.00017809,2]
[404900834,1770665438856,-1000.0,0.00017809,2]
[404900835,1770665438865,-1000.0,0.00017809,2]
[404900836,1770665438875,-1000.0,0.00017809,2]
[404900837,1770665438884,-1000.0,0.00017809,2]
[404900838,1770665438894,-1000.0,0.00017809,2]
[404900839,1770665438904,-506.851,0.00017809,2]
[404900840,1770665438913,-1806.11,0.00017809,2]
[404900841,1770665438923,-200.0,0.00017817,2]
[404900842,1770665438933,-200.0,0.00017817,2]
[404900843,1770665438942,-500.0,0.00017817,2]
[404900844,1770665438952,-177.0,0.00017819,2]
[404900845,1770665438961,-166.66,0.00017845,2]
[404900846,1770665438971,-774.42577446,0.0001786,2]
[404900847,1770665438980,-10000.0,0.000179,2]
[404900848,1770665438990,-550.75248981,0.000179,2]
[404900849,1770665438999,-217.40696742,0.000179,2]
[404900850,1770665439010,-1037.9849015,0.000179,2]
[404900851,1770665439020,-500.0,0.000179,2]
[404900852,1770665439030,-1385.7313984,0.000179,2]
[404900853,1770665439039,-1117.0,0.0001795,2]
[404900854,1770665439049,-1117.0,0.00017954,2]
[404900855,1770665439059,-1117.0,0.00017984,2]
[404900856,1770665439068,-151.0,0.00017997,2]
[404900857,1770665439078,-300.0,0.00017999,2]
[404900858,1770665439088,-300.0,0.00017999,2]
[404900859,1770665439097,-4966537.937871,0.00018,2]
[404900860,1770665439110,-296.53689903,0.00018,2]
[404900861,1770665439121,-3093.74999977,0.00018,2]
[404900862,1770665439133,-424.06072804,0.00018,2]
[404900863,1770665439147,-1695.30567479,0.00018,2]
[404900864,1770665439159,-14481.95205704,0.00018,2]
[404900873,1770665439939,-1421322.95785393,0.00018,2]
[404900874,1770665439950,-1432.3125644,0.00018,2]
[404900875,1770665439993,-2183.52560609,0.00018,2]
[404900876,1770665440004,-1169.5132345,0.00018,2]
[404900877,1770665440048,-12952.0,0.00018,2]
[404900878,1770665440059,-512.27802841,0.00018,2]
[404900879,1770665440106,-497.813004,0.00018,2]
[404900910,1770665446042,-304.5,0.00016528,2]
[404900912,1770665446335,-57.1751918,0.00016528,2]
[404900913,1770665446345,-747364.82819392,0.00018,2]
[404900914,1770665446356,-6658.75442035,0.00018,2]
[404900931,1770665857748,-706.040298,0.00016429,2]
[404900932,1770665857781,-250.0,0.00016435,2]
[404900933,1770665857810,-706.04029793,0.00016441,2]
[404900934,1770665858132,-300.0,0.00016451,2]
[404900935,1770665858164,-230.0,0.00016452,2]
[404900936,1770665858278,-706.04029793,0.00016453,2]
[404900937,1770665858307,-706.04029793,0.00016466,2]
[404900938,1770665858335,-706.04029793,0.00016478,2]
[404900939,1770665858367,-57.72791449,0.0001649,2]
[404900940,1770665858430,-648.31238344,0.0001649,2]
[404900941,1770665858459,-165.3,0.000165,2]
[404900942,1770665858488,-150.0,0.00016502,2]
[404900943,1770665858516,-706.04029793,0.00016502,2]
[404900944,1770665858544,-300.0,0.00016513,2]
[404900945,1770665858572,-354.66433933,0.00016515,2]
[404900946,1770665858950,-351.3759586,0.00016515,2]
[404900947,1770665858960,-258.12089365,0.00016527,2]
[404900948,1770665858980,-300.0,0.00016527,2]
[404900949,1770665858998,-147.91940428,0.00016527,2]
[404900950,1770665859008,-558.12089365,0.00016527,2]
[404900951,1770665860646,-641.87910635,0.00016527,2]
[404900952,1770665860674,-1200.0,0.00016527,2]
[404900953,1770665860701,-300.0,0.00016527,2]
[404900954,1770665860727,-166.2517873,0.00016527,2]
[404900955,1770665860798,-383.7482127,0.00016527,2]
[404900956,1770665860828,-500.0,0.00016527,2]
[404900957,1770665860854,-500.0,0.00016528,2]
[404900958,1770665862459,500.0,0.00016528,2]
[404900959,1770665862821,501.22606665,0.00016528,2]
[404900960,1770665863304,162.0,0.00034521,30]
[404900961,1770665870520,500.0,0.00016528,2]
[404900962,1770665870740,505.33010903,0.00016528,2]
[404900963,1770665887696,5831.24784108,0.00016519,2]
[404900964,1770665887959,-1000.0,0.00016529,2]
[404900965,1770665888011,-2000.01,0.00016529,2]
[404900966,1770665894049,-5000.01,0.00016529,2]
[404900967,1770665907478,500.0,0.00016528,2]
[404900968,1770665907545,505.35793479,0.00016528,2]
[404900969,1770665920141,500.0,0.00016528,2]
[404900970,1770665920375,509.29354384,0.00016528,2]
[404900971,1770665928125,500.0,0.00016528,2]
[404900972,1770665941149,300.0,0.00016528,2]
[404900973,1770665941861,550.0,0.00016528,2]
[404900974,1770665944577,255.39936964,0.00016528,2]
[404900975,1770665945875,295.04789679,0.00016528,2]
[404900976,1770665945927,253.66341386,0.00016528,2]
[404900977,1770665945950,246.33658614,0.00016528,2]
[404900978,1770665946485,500.0,0.00016329,2]
[404900979,1770665970213,1556.6634573,0.00016434,2]
[404900980,1770665983102,154.96528002,0.00016434,2]
[404900982,1770666021941,-288.0,0.00016445,2]
[404900983,1770666035194,1200.0,0.00016444,2]
[404900984,1770666039047,-300.0,0.00016527,2]
[404900985,1770666039079,-1200.0,0.00016527,2]
[404900986,1770666042211,176.16894792,0.00016428,2]
[404900987,1770666052309,1141.85,0.0001644,2]
[404900988,1770666054084,-500.0,0.00016528,2]
[404900989,1770666061223,300.0,0.00016527,2]
[404900990,1770666069233,-300.0,0.00016528,2]
[404900991,1770666076494,354.59805596,0.00016528,2]
[404900992,1770666080616,1379.01,0.00016528,2]
[404900994,1770666084295,-159.38731134,0.00016528,2]
[404900995,1770666084327,-722.0564061,0.00016528,2]
[404900996,1770666084359,-722.0564061,0.00016528,2]
[404900997,1770666084391,-722.0564061,0.00016528,2]
[404900998,1770666084425,-722.0564061,0.00016528,2]
[404900999,1770666084457,-722.0564061,0.00016528,2]
[404901000,1770666084490,-722.0564061,0.00016528,2]
[404901001,1770666084522,-294.50209802,0.00016528,2]
[404901002,1770666084770,-427.55430808,0.00016528,2]
[404901003,1770666084801,-722.0564061,0.00016528,2]
[404901004,1770666084833,-722.0564061,0.00016528,2]
[404901005,1770666084865,-722.0564061,0.00016528,2]
[404901006,1770666084896,-722.0564061,0.00016528,2]
[404901007,1770666084926,-722.0564061,0.00016528,2]
[404901008,1770666084959,-722.0564061,0.00016528,2]
[404901009,1770666085011,-722.0564061,0.00016528,2]
[404901010,1770666085043,-722.0564061,0.00016528,2]
[404901011,1770666085075,-722.0564061,0.00016528,2]
[404901012,1770666085106,-722.0564061,0.00016528,2]
[404901013,1770666085135,-722.0564061,0.00016528,2]
[404901014,1770666085166,-722.0564061,0.00016528,2]
[404901015,1770666085198,-613.2767207,0.00016528,2]
[404901016,1770666085262,-108.7796854,0.00016528,2]
[404901017,1770666085294,-722.0564061,0.00016528,2]
[404901018,1770666085326,-722.0564061,0.00016528,2]
[404901019,1770666085358,-722.0564061,0.00016528,2]
[404901020,1770666085389,-722.0564061,0.00016528,2]
[404901021,1770666085424,-722.0564061,0.00016528,2]
[404901022,1770666085454,-722.0564061,0.00016528,2]
[404901023,1770666085486,-395.7173499,0.00016528,2]
[404901024,1770666085599,-326.3390562,0.00016528,2]
[404901025,1770666085630,-722.0564061,0.00016528,2]
[404901026,1770666085661,-722.0564061,0.00016528,2]
[404901027,1770666085691,-722.0564061,0.00016528,2]
[404901028,1770666085722,-722.0564061,0.00016528,2]
[404901029,1770666085753,-722.0564061,0.00016528,2]
[404901030,1770666085785,-722.0564061,0.00016528,2]
[404901031,1770666086115,-722.0564061,0.00016528,2]
[404901032,1770666086148,-722.0564061,0.00016528,2]
[404901033,1770666086180,-722.0564061,0.00016528,2]
[404901034,1770666086211,-722.0564061,0.00016528,2]
[404901035,1770666086243,-722.0564061,0.00016528,2]
[404901036,1770666086279,-722.0564061,0.00016528,2]
[404901037,1770666086311,-613.2767207,0.00016528,2]
[404901038,1770666086419,-108.7796854,0.00016528,2]
[404901039,1770666086452,-722.0564061,0.00016528,2]
[404901040,1770666086485,-722.0564061,0.00016528,2]
[404901041,1770666086520,-722.0564061,0.00016528,2]
[404901042,1770666086552,-722.0564061,0.00016528,2]
[404901043,1770666086585,-722.0564061,0.00016528,2]
[404901044,1770666086616,-722.0564061,0.00016528,2]
[404901045,1770666086650,-395.7173499,0.00016528,2]
[404901046,1770666086831,-326.3390562,0.00016528,2]
[404901047,1770666086864,-722.0564061,0.00016528,2]
[404901048,1770666086896,-722.0564061,0.00016528,2]
[404901049,1770666086928,-722.0564061,0.00016528,2]
[404901050,1770666086964,-722.0564061,0.00016528,2]
[404901051,1770666086996,-722.0564061,0.00016528,2]
[404901052,1770666087030,-722.0564061,0.00016528,2]
[404901053,1770666087217,-722.0564061,0.00016528,2]
[404901054,1770666087249,-722.0564061,0.00016528,2]
[404901055,1770666087284,-722.0564061,0.00016528,2]
[404901056,1770666087316,-722.0564061,0.00016528,2]
[404901057,1770666087350,-722.0564061,0.00016528,2]
[404901058,1770666087382,-722.0564061,0.00016528,2]
[404901059,1770666087421,-613.2767207,0.00016528,2]
[404901060,1770666088396,-108.7796854,0.00016528,2]
[404901061,1770666088434,-722.0564061,0.00016528,2]
[404901062,1770666088468,-722.0564061,0.00016528,2]
[404901063,1770666088502,-722.0564061,0.00016528,2]
[404901064,1770666088536,-722.0564061,0.00016528,2]
[404901065,1770666088569,-318.05978588,0.00016528,2]
[404901066,1770666088599,-500.0,0.00016528,2]
[404901067,1770666088629,-500.0,0.00016528,2]
[404901068,1770666088663,-671.8919494,0.00016528,2]
[404901069,1770666088765,-26.09590984,0.00016528,2]
[404901070,1770666088796,-697.98785924,0.00016528,2]
[404901071,1770666088827,-697.98785924,0.00016528,2]
[404901072,1770666088858,-697.98785924,0.00016528,2]
[404901073,1770666088890,-697.98785924,0.00016528,2]
[404901074,1770666088922,-697.98785924,0.00016528,2]
[404901075,1770666088953,-697.98785924,0.00016528,2]
[404901076,1770666088987,-697.98785924,0.00016528,2]
[404901077,1770666089158,-697.98785924,0.00016528,2]
[404901078,1770666089191,-697.98785924,0.00016528,2]
[404901079,1770666089225,-697.98785924,0.00016528,2]
[404901080,1770666089258,-697.98785924,0.00016528,2]
[404901081,1770666089290,-697.98785924,0.00016528,2]
[404901082,1770666089322,-697.98785924,0.00016528,2]
[404901083,1770666089354,-697.98785924,0.00016528,2]
[404901084,1770666089419,-697.98785924,0.00016528,2]
[404901085,1770666089452,-697.98785924,0.00016528,2]
[404901086,1770666089483,-697.98785924,0.00016528,2]
[404901087,1770666089514,-697.98785924,0.00016528,2]
[404901088,1770666089546,-697.98785924,0.00016528,2]
[404901089,1770666089576,-697.98785924,0.00016528,2]
[404901090,1770666089607,-697.98785924,0.00016528,2]
[404901091,1770666089855,-697.98785924,0.00016528,2]
[404901092,1770666089887,-697.98785924,0.00016528,2]
[404901093,1770666089917,-697.98785924,0.00016528,2]
[404901094,1770666089949,-697.98785924,0.00016528,2]
[404901095,1770666089981,-697.98785924,0.00016528,2]
[404901096,1770666090008,-500.0,0.00016528,2]
[404901097,1770666090036,-318.24196015,0.00016528,2]
[404901098,1770666090064,-500.0,0.00016528,2]
[404901099,1770666091522,-500.0,0.00016528,2]
[404901100,1770666091549,-500.0,0.00016528,2]
[404901101,1770666091576,-500.0,0.00016528,2]
[404901102,1770666091604,-500.0,0.00016528,2]
[404901103,1770666091630,-500.0,0.00016528,2]
[404901104,1770666091659,-500.0,0.00016528,2]
[404901105,1770666091685,-500.0,0.00016528,2]
[404901106,1770666091711,-500.0,0.00016528,2]
[404901107,1770666091739,-500.0,0.00016528,2]
[404901108,1770666091766,-500.0,0.00016528,2]
[404901109,1770666091805,-500.0,0.00016528,2]
[404901110,1770666091832,-501.92303422,0.00016528,2]
[404901111,1770666091859,-500.0,0.00016528,2]
[404901112,1770666091886,-500.0,0.00016528,2]
[404901113,1770666091914,-189.56798188,0.00016528,2]
[404901114,1770666091942,-500.0,0.00016528,2]
[404901115,1770666091972,-500.0,0.00016528,2]
[404901116,1770666092001,-500.0,0.00016528,2]
[404901117,1770666092029,-500.0,0.00016528,2]
[404901118,1770666092056,-500.0,0.00016528,2]
[404901119,1770666092084,-117.0279678,0.00016528,2]
[404901120,1770666092115,-382.9720322,0.00016528,2]
[404901121,1770666092142,-500.0,0.00016528,2]
[404901122,1770666092170,-500.0,0.00016528,2]
[404901123,1770666092198,-236.87836932,0.00016528,2]
[404901124,1770666092227,-500.0,0.00016528,2]
[404901125,1770666092255,-404.7419541,0.00016528,2]
[404901126,1770666092282,-500.0,0.00016528,2]
[404901127,1770666092310,-500.0,0.00016528,2]
[404901128,1770666092337,-500.0,0.00016528,2]
[404901129,1770666092366,-500.0,0.00016528,2]
[404901130,1770666092393,-445.1764135,0.00016528,2]
[404901131,1770666092434,-60.47246176,0.00016528,2]
[404901132,1770666092463,-500.0,0.00016528,2]
[404901133,1770666092495,-500.0,0.00016528,2]
[404901134,1770666092522,-500.0,0.00016528,2]
[404901135,1770666092549,-500.0,0.00016528,2]
[404901136,1770666092576,-500.0,0.00016528,2]
[404901137,1770666092603,-500.0,0.00016528,2]
[404901138,1770666092631,-500.0,0.00016528,2]
[404901139,1770666092659,-500.0,0.00016528,2]
[404901140,1770666092686,-500.0,0.00016528,2]
[404901141,1770666092713,-379.06507648,0.00016528,2]
[404901142,1770666092749,-120.93492352,0.00016528,2]
[404901143,1770666092777,-500.0,0.00016528,2]
[404901144,1770666092956,-500.0,0.00016528,2]
[404901145,1770666092986,-500.0,0.00016528,2]
[404901146,1770666093016,-500.0,0.00016528,2]
[404901147,1770666093044,-500.0,0.00016528,2]
[404901148,1770666093073,-500.0,0.00016528,2]
[404901149,1770666093101,-500.0,0.00016528,2]
[404901150,1770666093128,-500.0,0.00016528,2]
[404901151,1770666093155,-500.0,0.00016528,2]
[404901152,1770666093183,-258.14015296,0.00016528,2]
[404901153,1770666093215,-241.85984704,0.00016528,2]
[404901154,1770666093243,-500.0,0.00016528,2]
[404901155,1770666093271,-500.0,0.00016528,2]
[404901156,1770666093298,-500.0,0.00016528,2]
[404901157,1770666093326,-500.0,0.00016528,2]
[404901158,1770666093352,-217.36197167,0.00016528,2]
[404901159,1770666093380,-500.0,0.00016528,2]
[404901160,1770666093412,-500.0,0.00016528,2]
[404901161,1770666093440,-509.31183288,0.00016528,2]
[404901162,1770666095038,2062.94269682,0.00016198,2]
[404901163,1770666095064,451.71530318,0.00016198,2]
[404901164,1770666104032,500.0,0.00016429,2]
[404901165,1770666121755,550.0,0.00016528,2]
[404901166,1770666123702,8498.29469682,0.00016429,2]
[404901167,1770666123725,10000.01,0.00016429,2]
[404901168,1770666123749,10000.01,0.00016429,2]
[404901169,1770666123772,10000.01,0.00016429,2]
[404901170,1770666123795,10000.01,0.00016429,2]
[404901171,1770666123819,10000.01,0.00016429,2]
[404901172,1770666123843,10000.01,0.00016429,2]
[404901173,1770666123866,10000.01,0.00016429,2]
[404901174,1770666123890,10000.01,0.00016429,2]
[404901175,1770666124102,10000.01,0.00016429,2]
[404901176,1770666138600,217.40696742,0.00016429,2]
[404901177,1770666181187,300.0,0.00016428,2]
[404901178,1770666181686,151.0,0.00016426,2]
[404901179,1770666197371,1505.21132532,0.00016426,2]
[404901180,1770666205357,500.0,0.00016428,2]
[404901181,1770666205697,165.81485852,0.00016428,2]
[404901182,1770666206059,226.02952249,0.00016428,2]
[404901183,1770666206377,556.53352776,0.00016428,2]
[404901184,1770666207071,178.77955875,0.00016428,2]
[404901185,1770666207628,1164.6576277,0.00016426,2]
[404901186,1770666229973,500.0,0.00016428,2]
[404901187,1770666230274,500.0,0.00016428,2]
[404901188,1770666230641,500.0,0.00016428,2]
[404901189,1770666230892,500.0,0.00016428,2]
[404901190,1770666231218,500.0,0.00016428,2]
[404901191,1770666231582,500.0,0.00016428,2]
[404901192,1770666231806,500.0,0.00016428,2]
[404901193,1770666232351,500.0,0.00016428,2]
[404901194,1770666232651,500.0,0.00016428,2]
[404901195,1770666232959,500.0,0.00016428,2]
[404901196,1770666233281,34.57661204,0.00016428,2]
[404901197,1770666233306,465.42338796,0.00016428,2]
[404901198,1770666233531,592.61015072,0.00016392,2]
[404901199,1770666233604,500.0,0.00016428,2]
[404901200,1770666233928,500.0,0.00016428,2]
[404901201,1770666236368,1325.12297004,0.00016392,2]
[404901202,1770666239016,500.0,0.00016428,2]
[404901203,1770666241278,300.0,0.00016428,2]
[404901204,1770666250667,1362.08052512,0.00016392,2]
[404901205,1770666258913,217.40696742,0.0001636,2]
[404901206,1770666265737,500.0,0.00016329,2]
[404901207,1770666269879,1655.15,0.0001576,2]
[404901208,1770666278392,150.0,0.00016402,2]
[404901209,1770666279078,1254.3427711,0.0001636,2]
[404901210,1770666280627,677.87322764,0.00015774,2]
[404901211,1770666280650,322.12677236,0.00015774,2]
[404901212,1770666297143,174.02,0.0001261,2]
[404901213,1770666297379,174.02,0.00014187,2]
[404901214,1770666297683,174.02,0.00015763,2]
[404901215,1770666301226,1200.0,0.00016428,2]
[404901216,1770666302116,550.0,0.00016428,2]
[404901217,1770666303880,151.0,0.00016426,2]
[404901218,1770666306222,239.57346943,0.00016428,2]
[404901219,1770666319268,500.0,0.00016428,2]
[404901220,1770666319309,500.0,0.00016428,2]
[404901221,1770666319370,575.28348739,0.00016428,2]
[404901222,1770666322421,300.0,0.00016428,2]
[404901223,1770666323783,752.57,0.00015763,2]
[404901224,1770666333283,262.345578,0.00016428,2]
[404901225,1770666342534,500.0,0.00016428,2]
[404901226,1770666342574,500.0,0.00016428,2]
[404901227,1770666342681,500.0,0.00016428,2]
[404901228,1770666342739,500.0,0.00016428,2]
[404901229,1770666342871,500.0,0.00016428,2]
[404901230,1770666343045,635.86602242,0.00016428,2]
[404901231,1770666349031,500.0,0.00016428,2]
[404901232,1770666349094,489.1846704,0.00016428,2]
[404901233,1770666349119,10.8153296,0.00016428,2]
[404901234,1770666349217,153.42298573,0.00016428,2]
[404901235,1770666356637,883.41531336,0.0001636,2]
[404901236,1770666357271,500.0,0.00016428,2]
[404901237,1770666357323,500.0,0.00016428,2]
[404901238,1770666357377,213.17446045,0.00016428,2]
[404901239,1770666360034,1045.2856426,0.0001636,2]
[404901240,1770666361494,300.0,0.00016428,2]
[404901241,1770666363662,177.85236125,0.00016428,2]
[404901242,1770666363812,395.07343382,0.0001636,2]
[404901243,1770666364971,500.0,0.00016428,2]
[404901244,1770666365033,500.0,0.00016428,2]
[404901245,1770666365086,496.08049187,0.00016428,2]
[404901246,1770666366366,500.0,0.00016428,2]
[404901247,1770666366422,500.0,0.00016428,2]
[404901248,1770666366475,571.73619716,0.00016428,2]
[404901249,1770666376122,250.0,0.00015,2]
[404901250,1770666380538,506.03129652,0.00016428,2]
[404901251,1770666384170,416.16766029,0.00016428,2]
[404901252,1770666390649,1580.95482735,0.00016329,2]
[404901253,1770666390672,5148.05797265,0.00016329,2]
[404901254,1770666399687,500.0,0.00016428,2]
[404901255,1770666414336,-300.0,0.00016429,2]
[404901256,1770666420886,-300.0,0.00016429,2]
[404901257,1770666421215,300.0,0.00016428,2]
[404901258,1770666421367,483.4608,0.00016329,2]
[404901259,1770666424804,151.0,0.00016426,2]
[404901262,1770666441129,3417.49122735,0.00016329,2]
[404901263,1770666441154,10000.01,0.00016329,2]
[404901264,1770666441179,10000.01,0.00016329,2]
[404901265,1770666441203,10000.01,0.00016329,2]
[404901266,1770666441227,10000.01,0.00016329,2]
[404901267,1770666441252,10000.01,0.00016329,2]
[404901268,1770666441280,10000.01,0.00016329,2]
[404901269,1770666441304,10000.01,0.00016329,2]
[404901270,1770666441327,10000.01,0.00016329,2]
[404901271,1770666441352,10000.01,0.00016329,2]
[404901283,1770666470019,216.81,0.00015767,2]
[404901284,1770666476971,440.355,0.00035616,30]
[404901285,1770666546481,10000.01,0.00016147,2]
[404901286,1770666546503,1653.402065,0.00016147,2]
[404901289,1770666558884,3251.23329,0.00016146,2]
[404901292,1770666563575,10000.0,0.00035616,30]
[404901294,1770666579813,10000.0,0.00035616,30]
[404901295,1770666597498,10000.0,0.00035616,30]
[404901298,1770666616430,10000.0,0.00035616,30]
[404901310,1770666631961,-1506.85250786,0.00016229,2]
[404901311,1770666631971,-610.32399362,0.00016229,2]
[404901312,1770666631980,-1304.83943915,0.00016229,2]
[404901313,1770666631993,-100.26996955,0.00016229,2]
[404901314,1770666632004,-1406.45841875,0.00016229,2]
[404901315,1770666632014,-286.0,0.00016229,2]
[404901316,1770666632024,-1028.35962541,0.00016229,2]
[404901317,1770666632035,-1598.00700778,0.00016229,2]
[404901318,1770666632044,-300.0,0.00016231,2]
[404901319,1770666632054,-250.0,0.00016234,2]
[404901320,1770666632070,-195.0,0.00016238,2]
[404901321,1770666632080,-385.99353041,0.00016238,2]
[404901322,1770666632090,-1200.0,0.00016245,2]
[404901323,1770666632102,-300.0,0.00016245,2]
[404901324,1770666632113,-300.0,0.00016245,2]
[404901325,1770666632122,-300.0,0.00016246,2]
[404901326,1770666632133,-1200.0,0.00016246,2]
[404901327,1770666632142,-150.0,0.00016302,2]
[404901328,1770666632152,-168.42940732,0.00016319,2]
[404901329,1770666632161,-195.0,0.00016325,2]
[404901330,1770666632170,-195.0,0.00016325,2]
[404901331,1770666632180,-195.0,0.00016325,2]
[404901333,1770666632191,-151.0,0.00016326,2]
[404901335,1770666632201,-550.0,0.00016328,2]
[404901336,1770666632210,-3872.41015548,0.00016329,2]
[404901337,1770666632222,-577.75976,0.00016329,2]
[404901338,1770666632233,-345.11572277,0.00016329,2]
[404901339,1770666632244,-2242.16787944,0.00016329,2]
[404901340,1770666632260,-9652.00722466,0.00016329,2]